Cogmind - Beta 9.6 @@@ ROGUE MODE // 2020.08.03 @ 00:16:05 Player: Alexbot Result: Destroyed self with Supercharged Sigix Terminator Performance ------------- Evolutions (7) 3500 Regions Visited (28) 5600 Robots Destroyed (423) 2115 Value Destroyed (21279) 21279 Prototype IDs (76) 1520 Alien Tech Used (14) 2800 Bonus (18879) 18879 TOTAL SCORE: 55693 Bonus ------- Triggered Max Security 1000 High Alert Combat Kills 1781 Follower Combat Kills 3238 Network Hubs Disabled 400 Destroyed Z-Imprinter 1000 Triggered Deep Caves Wall 1000 Exposed GOLEM Chamber 2500 Met Zhirov 300 A7 Reached Mainframe 300 Met R17 at Cetus 500 Found Hidden Lab 3000 Used Core Reset Matrix 3000 Met Sigix 2000 Activated Exoskeleton 3000 Friendly Fire -4140 Cogmind --------- Core Integrity 0/1300 Matter 371/425 Energy 1600/1600 System Corruption 0% Temperature Cool (0) Movement Walking (150) Ox1 Location -3/Section 7 Parts ------- > --- POWER (1) -------- Improved Quantum Reactor > --- PROPULSION (3) --- Enhanced Biometal Leg Assembled Alloy Leg Assembled Alloy Leg > --- UTILITY (15) ----- Large Storage Unit Large Storage Unit Large Storage Unit Large Storage Unit Assembled Biocell Array Experimental Signal Interpreter Experimental Terrain Scan Processor Assembled Combat Suite Experimental Targeting Computer Heavy Regenerative Plating Hacking Suite GOLEM Unit > --- WEAPON (2) ------- (None) > --- INVENTORY (28) --- Experimental Cooling System Zionite Metafield Generator Experimental Sensor Array Advanced Terrain Scanner Particle Accelerator Improved Stasis Canceller Improved Transmission Jammer Experimental Utility Shielding Experimental Utility Shielding Experimental Weapon Shielding Experimental Weapon Shielding Advanced Powered Armor EM Dispersion Field Experimental Force Field Mobile Refinery Mk. CCLXVII Gamma Rifle Gamma Rifle Gamma Rifle Advanced Remote Datajack Peak State ------------ > --- POWER ------------ Light Antimatter Reactor > --- PROPULSION ------- Advanced Heavy Treads Assembled Alloy Leg > --- UTILITY ---------- Large Storage Unit Large Storage Unit Large Storage Unit Large Storage Unit Assembled Biocell Array Experimental Signal Interpreter Experimental Terrain Scan Processor Assembled Combat Suite Experimental Utility Shielding Centrium Medium Armor Plating Experimental Focal Shield Hacking Suite Hacking Suite GOLEM Unit > --- WEAPON ----------- Core Stripper > --- INVENTORY -------- Zionite Metafield Generator Experimental Sensor Array Advanced Terrain Scanner Particle Accelerator Improved Stasis Canceller Improved Transmission Jammer Experimental Utility Shielding Experimental Weapon Shielding Experimental Weapon Shielding Advanced Powered Armor EM Disruption Field Improved Force Field Improved System Restoration Module Mobile Refinery Mk. CCLXVII GOLEM Unit GOLEM Unit GOLEM Unit High-powered Transdimensional Reconstructor Subatomic Replicator Gamma Rifle Sigix Terminator Sigix Containment Pod [Rating: 162] Favorites ----------- Power Light Nuclear Core Engine Light Ion Engine Power Core Light Nuclear Core Reactor Light Antimatter Reactor Propulsion Assembled Alloy Leg Treads Medium Treads Leg Assembled Alloy Leg Wheel Armored Wheel Hover Unit Improved Linear Gravjet Utility Large Storage Unit Device GOLEM Unit Storage Large Storage Unit Processor Advanced Signal Interpreter Hackware Hacking Suite Protection Experimental Utility Shielding Weapon Assembled Focal Cannon Energy Gun Electrolaser Energy Cannon Assembled Focal Cannon Ballistic Gun Heavy Assault Rifle Ballistic Cannon Gauss Cannon Launcher Rocket Array Special Weapon Remote Datajack Impact Weapon Core Stripper Slashing Weapon Vibroblade Build | -11 -10 -9 -9 -8 -7 -7 -7 -7 -7 -6 -6 -6 -6 -6 -6 -6 -6 -5 -5 -5 -5 -4 -4 -4 -4 -3 -3 -3 ------- Run | Scr Mat Mat Min Mat Fac Low Low Zio Dee Pro Fac Was Fac Ext Cet Arc Hub Fac Upp Upp Zhi Pro Fac Arm Lab Res Qua Sec Slots Evolved 14 | . . 2 . 2 2 . . . . . 2 . . . . . . 2 . . . . 2 . . 2 . . Power . | . . . . . . . . . . . . . . . . . . . . . . . . . . . . . Propulsion 1 | . . . . . . . . . . . . . . . . . . . . . . . . . . 1 . . Utility 13 | . . 2 . 2 2 . . . . . 2 . . . . . . 2 . . . . 2 . . 1 . . Weapon . | . . . . . . . . . . . . . . . . . . . . . . . . . . . . . Parts Attached 536 | . 8 20 21 17 9 1 3 6 24 13 2 3 24 5 1 1 28 25 9 . 5 3 44 27 . 85 74 78 Power 30 | . 1 1 2 2 1 . . . . . . . 1 2 1 . 1 3 . . . . 2 3 . 5 2 3 Engine 6 | . 1 . 2 2 . . . . . . . . . 1 . . . . . . . . . . . . . . Core 7 | . . 1 . . 1 . . . . . . . 1 1 . . . . . . . . 1 1 . 1 . . Reactor 17 | . . . . . . . . . . . . . . . 1 . 1 3 . . . . 1 2 . 4 2 3 Propulsion 27 | . 2 1 5 4 1 . . . . 1 . . . . . . 1 . . . 1 . . 1 . 5 4 1 Treads 18 | . 2 1 . 4 1 . . . . 1 . . . . . . . . . . . . . 1 . 4 4 . Leg 7 | . . . 4 . . . . . . . . . . . . . 1 . . . 1 . . . . . . 1 Wheel 1 | . . . 1 . . . . . . . . . . . . . . . . . . . . . . . . . Hover 1 | . . . . . . . . . . . . . . . . . . . . . . . . . . 1 . . Flight . | . . . . . . . . . . . . . . . . . . . . . . . . . . . . . Utility 364 | . 1 5 3 3 3 . 1 1 9 3 2 1 22 3 . 1 24 21 8 . 4 2 35 21 . 65 58 68 Device 284 | . 1 . 1 1 . . 1 1 4 3 2 1 16 3 . . 20 14 8 . 4 2 28 15 . 50 47 62 Storage 18 | . . 4 . 1 . . . . 2 . . . 4 . . . 1 2 . . . . . 3 . . 1 . Processor 9 | . . . . . 3 . . . . . . . . . . . 1 . . . . . 1 . . 1 . 3 Hackware 5 | . . 1 . 1 . . . . . . . . . . . . . . . . . . 2 . . 1 . . Protection 48 | . . . 2 . . . . . 3 . . . 2 . . 1 2 5 . . . . 4 3 . 13 10 3 Artifact . | . . . . . . . . . . . . . . . . . . . . . . . . . . . . . Weapon 115 | . 4 13 11 8 4 1 2 5 15 9 . 2 1 . . . 2 1 1 . . 1 7 2 . 10 10 6 Energy Gun 26 | . 2 8 7 2 2 . . . 2 . . . . . . . . . . . . . . . . . 2 1 Energy Cannon 30 | . . . . 3 2 . 1 3 3 4 . . . . . . 2 . . . . . . 1 . 6 4 1 Ballistic Gun 7 | . 2 1 2 1 . . . . . . . . . . . . . . . . . . . . . 1 . . Ballistic Cannon 16 | . . . . . . 1 . . 4 1 . . . . . . . 1 . . . . 5 1 . 1 1 1 Launcher 31 | . . 4 2 2 . . 1 2 4 4 . 2 1 . . . . . 1 . . 1 2 . . 2 2 1 Special Weapon 3 | . . . . . . . . . 2 . . . . . . . . . . . . . . . . . . 1 Impact Weapon 1 | . . . . . . . . . . . . . . . . . . . . . . . . . . . 1 . Slashing Weapon 1 | . . . . . . . . . . . . . . . . . . . . . . . . . . . . 1 Piercing Weapon . | . . . . . . . . . . . . . . . . . . . . . . . . . . . . . Special Melee Weapon . | . . . . . . . . . . . . . . . . . . . . . . . . . . . . . Unidentified Prototypes 49 | . . 2 . . 3 . 1 3 4 . . . 1 . . . 4 1 . . 4 . . 4 1 2 8 11 Parts Lost 61 | . 5 5 12 3 . . . . 1 2 . . 1 4 . 1 2 1 . . . . 4 1 . 7 2 10 Power 10 | . 1 1 2 1 . . . . . . . . . 1 . . . . . . . . 1 . . 1 1 1 Propulsion 13 | . 2 . 4 . . . . . . 1 . . . . . . . 1 . . . . . . . 3 . 2 Utility 18 | . . 1 . 1 . . . . 1 1 . . 1 2 . 1 2 . . . . . 3 1 . 1 . 3 Weapon 20 | . 2 3 6 1 . . . . . . . . . 1 . . . . . . . . . . . 2 1 4 Highest Loss Streak 4 | . 3 1 4 2 . . . . 1 1 . . 1 4 . 1 1 1 . . . . 3 1 . 2 1 3 Average Slot Usage (%) 90 | . 92 85 99 81 75 92 97 92 91 86 88 92 92 92 93 93 91 93 94 94 92 94 92 89 87 88 90 87 Engine 1 | . 11 4 10 8 1 . . . . . . . . 2 3 . . . . . . . . . . . . . Core 2 | . . 6 . . 5 7 7 7 7 7 6 6 6 3 . . . . . . . . . . . 1 . . Reactor 2 | . . . . . . . . . . . . . . . 3 6 6 5 5 5 5 5 3 5 5 2 3 3 Treads 5 | . 2 22 . 16 15 15 15 15 15 11 1 . . . . . . . . . . . . 4 5 6 4 2 Leg 7 | . 24 . 20 . . . . . . . 9 13 13 13 13 13 13 11 11 11 10 11 10 . . 2 6 7 Device 15 | . 10 11 5 5 7 7 12 7 6 7 19 20 20 20 20 18 18 22 17 17 15 17 19 19 15 17 17 16 Storage 25 | . 14 19 33 27 23 23 23 23 23 23 25 26 30 33 33 33 27 27 29 29 29 29 26 28 31 23 22 23 Processor 7 | . . . . . 12 23 23 23 13 7 6 6 6 6 6 6 7 5 5 5 5 5 5 5 5 8 9 10 Hackware 3 | . . . . 5 . . . . . . . . . . . . . . . . . . 6 5 5 9 9 7 Protection 4 | . . . 5 . . . . . 9 13 6 6 1 . . 1 2 6 11 11 11 11 9 8 8 4 5 3 Energy Gun 1 | . 12 12 11 2 6 . . . . . . . . . . . . . . . . . . . . . . . Energy Cannon 7 | . . . . 5 1 7 7 6 2 6 7 8 12 12 13 13 13 10 10 11 11 10 7 8 5 6 6 5 Ballistic Gun 1 | . 14 8 9 8 . . . . . . . . . . . . . . . . . . . . . . . . Ballistic Cannon 1 | . . . . . . 7 7 7 6 4 2 . . . . . . . . . . . 2 1 5 . . 1 Naked Turns . | . . . . . . . . . . . . . . . . . . . . . . . . . . . . . Heaviest Build 150 | 11 14 76 78 75 65 67 68 68 81 77 90 92 97 104 109 115 145 118 110 110 110 113 133 150 138 144 136 147 Greatest Support 108 | 20 40 40 30 56 56 56 56 56 56 56 60 60 60 60 60 60 60 70 60 60 60 60 60 80 80 108 90 100 Greatest Overweight (x) 5 | . . 1 5 3 1 1 1 1 1 2 1 1 1 1 1 1 2 3 1 1 1 1 4 4 1 4 4 3 Average Overweight (x) 1 | . . . 2 1 . 1 1 1 1 1 1 1 1 1 1 1 1 1 1 1 1 1 1 1 1 1 1 1 Largest Inventory Capacity 32 | . 6 24 24 30 22 22 22 22 22 22 22 22 22 22 22 22 22 26 26 26 26 26 26 32 32 32 28 28 Average Capacity 24 | . 6 11 24 23 22 22 22 22 22 22 22 22 22 22 22 22 21 24 26 26 26 26 26 29 32 28 27 28 Most Carried 32 | . 6 19 19 18 22 22 22 22 22 22 22 22 22 22 22 22 22 26 26 26 26 26 26 32 32 29 28 28 Average Carried 23 | . 5 8 15 14 21 21 21 21 20 21 20 20 21 22 22 22 20 24 25 25 25 25 25 28 31 27 27 27 Final Capacity 32 | 6 6 24 24 22 22 22 22 22 22 22 22 22 22 22 22 22 22 26 26 26 26 26 26 32 32 28 28 28 Final Carried 31 | 6 2 19 14 17 22 22 22 21 22 21 21 22 22 22 22 22 21 26 26 26 26 26 25 31 30 28 28 19 Class Distribution -------------------- 55% | Hauler-Mutant 29% | Hauler-Golem 4% | Alien-Mutant 4% | Mutant Dominant Class ---------------- Mutant | -10/Materials Mutant | -9/Materials Hauler-Mutant | -9/Mines Hauler-Mutant | -8/Materials Hauler-Mutant | -7/Factory Hauler-Mutant | -7/Lower Caves Hauler-Mutant | -7/Lower Caves Hauler-Mutant | -7/Zion Hauler-Mutant | -7/Deep Caves Hauler-Mutant | -6/Proximity Caves Hauler-Golem | -6/Factory Hauler-Golem | -6/Waste Hauler-Golem | -6/Factory Commander-Golem | -6/Extension Hauler-Golem | -6/Cetus Hauler-Golem | -6/Archives Hauler-Mutant | -6/Hub_04(d) Hauler-Golem | -5/Factory Hauler-Golem | -5/Upper Caves Hauler-Golem | -5/Upper Caves Hauler-Mutant | -5/Zhirov Hauler-Mutant | -4/Proximity Caves Hauler-Mutant | -4/Factory Hauler-Mutant | -4/Armory Hauler-Mutant | -4/Lab Hauler-Mutant | -3/Research Hauler-Mutant | -3/Quarantine Alien-Mutant | -3/Section 7 Resources | -11 -10 -9 -9 -8 -7 -7 -7 -7 -7 -6 -6 -6 -6 -6 -6 -6 -6 -5 -5 -5 -5 -4 -4 -4 -4 -3 -3 -3 ----------- Run | Scr Mat Mat Min Mat Fac Low Low Zio Dee Pro Fac Was Fac Ext Cet Arc Hub Fac Upp Upp Zhi Pro Fac Arm Lab Res Qua Sec Matter Collected 8570 | 200 149 331 414 248 67 189 42 98 394 283 . 196 295 40 20 . 326 231 178 . 50 27 682 652 . 1318 928 1212 Remotely . | . . . . . . . . . . . . . . . . . . . . . . . . . . . . . Salvage Created 19674 | . 365 920 855 498 . 120 27 . 674 283 . 955 973 410 314 234 1437 765 251 . 90 159 1551 1381 . 2413 2014 2985 Parts 956 | . 26 60 54 32 . . 6 . 14 12 . 6 44 16 9 8 63 35 15 . 1 7 78 68 . 152 93 157 Haulers Intercepted 2 | . . 1 . . . . . . . . . . . . . . . . . . . . . . . 1 . . Recyclers Shooed 7 | . . . 2 . . . . . . . . . . . . . 2 . . . . . 1 . . 2 . . Parts Field Recycled . | . . . . . . . . . . . . . . . . . . . . . . . . . . . . . Retrieved Matter . | . . . . . . . . . . . . . . . . . . . . . . . . . . . . . Parts Self-Destructed 32 | . . . . . . . 6 . . 4 . . . . . . . . 15 . 1 6 . . . . . . Prevented 4 | . . . . . . . . . . . . . . . . . . . . . . 4 . . . . . . Kills | -11 -10 -9 -9 -8 -7 -7 -7 -7 -7 -6 -6 -6 -6 -6 -6 -6 -6 -5 -5 -5 -5 -4 -4 -4 -4 -3 -3 -3 ------- Run | Scr Mat Mat Min Mat Fac Low Low Zio Dee Pro Fac Was Fac Ext Cet Arc Hub Fac Upp Upp Zhi Pro Fac Arm Lab Res Qua Sec Combat Hostiles Destroyed 379 | . 13 27 27 13 . . 3 . 44 8 . 4 19 6 5 3 19 14 7 . . 6 27 20 . 41 25 48 Guns 61 | . 13 14 25 6 . . . . . . . . . . . . . . . . . . . . . 1 1 1 Cannons 188 | . . . . 2 . . 1 . 5 1 . . 12 6 5 3 15 14 3 . . 3 22 13 . 20 21 42 AOE 113 | . . 13 2 5 . . 2 . 38 7 . 4 7 . . . 1 . 4 . . 3 5 . . 15 2 5 Classes Destroyed 25 | . 3 4 3 3 . . . . 2 . . 2 1 . . . . . . . . 1 . 3 . . 1 2 Worker 8 | . . 3 . . . . . . . . . . 2 . . . 1 . . . . . . . . 2 . . Builder 9 | . . . . 1 . . . . . . . . 1 . . . . . . . . . 2 . . 2 . 3 Hauler 2 | . . 1 . . . . . . . . . . . . . . . . . . . . . . . 1 . . Recycler 3 | . . . 2 . . . . . . . . . . . . . 1 . . . . . . . . . . . Operator 4 | . 1 1 . . . . . . . . . . . . . . 2 . . . . . . . . . . . Drone 1 | . . . . . . . . . . . . . . . . . . . . . . 1 . . . . . . Watcher 12 | . . 1 . 1 . . . . . . . . . 1 . . 3 . . . . . 1 . . 2 2 1 Swarmer 65 | . 6 8 13 3 . . 3 . . 4 . . . . 1 . 3 2 . . . 5 . . . 9 7 1 Saboteur 5 | . . . . . . . . . . . . . . . . . . . . . . . . 2 . 1 . 2 Grunt 105 | . 7 15 11 5 . . . . . 3 . . 8 3 2 . 7 8 5 . . 1 7 4 . 6 2 11 Brawler 2 | . . . . 1 . . . . . . . . . . . . . . . . . . . . . 1 . . Duelist 5 | . . . 2 . . . . . . . . . . . . . . . . . . . . . . 1 . 2 Protector 1 | . . . . . . . . . . . . . . . . . . . . . . . . . . . . 1 Sentry 36 | . . 4 . 3 . . . . . . . . 3 3 . 3 1 . . . . . 6 3 . 3 3 4 Specialist 2 | . . . . . . . . . . . . . . . . . . . . . . . . 2 . . . . Hunter 24 | . . . . 1 . . . . . . . . 3 . . . . 1 2 . . . 6 1 . 4 2 4 Programmer 66 | . . . . . . . . . . . . . 3 . . . 2 3 . . . . 8 7 . 15 10 18 Behemoth 2 | . . . . . . . . . . . . . . . . . . . . . . . . 1 . 1 . . Compactor 4 | . . . . . . . . . . . . 4 . . . . . . . . . . . . . . . . Cetus Guard 2 | . . . . . . . . . . . . . . . 2 . . . . . . . . . . . . . S7 Guard 2 | . . . . . . . . . . . . . . . . . . . . . . . . . . . . 2 Enhanced Grunt 1 | . . . . . . . . . . 1 . . . . . . . . . . . . . . . . . . Lightning 6 | . . . . . . . . . . . . . . . . . 6 . . . . . . . . . . . Executioner 3 | . . . . . . . . . . . . . . . . . . . . . . . . . . . . 3 Fortress 1 | . . . . . . . . . . . . . . . . . . . . . . . . . . . 1 . Z-Light 6 | . . . . . . . . . 6 . . . . . . . . . . . . . . . . . . . Assembled 38 | . . . 1 . . . . . 35 . . . 2 . . . . . . . . . . . . . . . Golem 3 | . . . . . . . . . 3 . . . . . . . . . . . . . . . . . . . Wasp 1 | . . . . . . . . . . . . . 1 . . . . . . . . . . . . . . . Thug 1 | . . . . . . . . . . . . . 1 . . . . . . . . . . . . . . . Savage 1 | . . . . . . . . . . 1 . . . . . . . . . . . . . . . . . . Martyr 2 | . . . . . . . . . . . . 2 . . . . . . . . . . . . . . . . Best Kill Streak 35 | . 4 7 5 6 . . 3 . 35 5 . 3 10 2 2 2 7 5 4 . . 5 6 4 . 9 4 9 Combat Bots Only 35 | . 4 7 4 6 . . 3 . 35 5 . 3 7 2 2 2 4 5 4 . . 5 5 4 . 9 4 8 Max Kills in Single Turn 17 | . 2 5 2 2 . . 1 . 17 3 . 2 3 2 1 1 4 1 2 . . 4 2 1 . 4 2 5 Gunslinging 1 | . 1 . 1 1 . . . . . . . . . . . . . . . . . . . . . . . . Exploded 17 | . . 4 2 2 . . 1 . 17 3 . 2 3 . . . 1 . 2 . . 3 2 . . 4 2 5 Melee . | . . . . . . . . . . . . . . . . . . . . . . . . . . . . . Uniques/NPCs Destroyed 1 | . . . . . . . . . 1 . . . . . . . . . . . . . . . . . . . Z-Imprinter (-7/Deep Caves) Combat | -11 -10 -9 -9 -8 -7 -7 -7 -7 -7 -6 -6 -6 -6 -6 -6 -6 -6 -5 -5 -5 -5 -4 -4 -4 -4 -3 -3 -3 -------- Run | Scr Mat Mat Min Mat Fac Low Low Zio Dee Pro Fac Was Fac Ext Cet Arc Hub Fac Upp Upp Zhi Pro Fac Arm Lab Res Qua Sec Damage Taken 22054 | . 880 665 1538 520 . . 175 . 426 272 . . 588 439 77 91 1275 479 96 . . 108 1909 619 . 5053 2046 4798 Core 2525 | . 217 157 183 79 . . 32 . 31 13 . . 92 71 12 11 105 34 . . . 10 142 54 . 282 187 813 Absorbed by Shields 3873 | . . . . . . . . . . . . . 155 361 79 95 491 . . . . 44 466 438 . 593 154 997 Reduced by Siege Mode 197 | . . . . . . . . . . . . . . . . . . . . . . . . . . 184 13 . Core Remaining (%) 67 | 100 13 . 15 85 . . . . . 89 . . . . . . 65 . . . . 95 . . 77 . . . Volleys Fired 1226 | . 64 66 82 34 . 17 3 3 28 13 . 19 42 32 15 8 108 37 7 3 4 11 88 60 5 161 94 222 Largest 2 | . 2 2 2 2 . 1 2 1 2 2 . 2 2 2 2 2 2 2 2 2 1 2 2 2 1 2 2 2 Hottest 130 | . 85 121 126 91 . 75 123 90 124 120 . 81 50 50 50 50 120 53 50 50 25 70 78 100 25 125 120 130 Shots Fired 1754 | . 111 102 162 59 . 17 4 3 32 17 . 24 59 45 30 16 139 55 11 6 4 16 133 85 5 196 123 300 Gun 448 | . 111 93 161 38 . . . . 4 . . . . . . . . . . . . . . . . 29 5 7 Cannon 1242 | . . . . 13 . 17 2 3 23 9 . 16 56 45 30 16 139 55 8 6 4 15 129 85 5 159 115 292 Launcher 63 | . . 9 1 8 . . 2 . 4 8 . 8 3 . . . . . 3 . . 1 4 . . 8 3 1 Special 1 | . . . . . . . . . 1 . . . . . . . . . . . . . . . . . . . Kinetic 349 | . 64 41 73 27 . 14 1 . 9 4 . . . . . . . 1 . . . . 28 10 . 40 . 37 Thermal 1236 | . 47 52 76 24 . 3 1 3 . 1 . 16 56 45 30 16 139 54 8 6 4 15 101 46 5 117 115 256 Explosive 59 | . . 9 1 8 . . 2 . 4 8 . 8 3 . . . . . 3 . . 1 4 . . 8 . . Electromagnetic 109 | . . . 12 . . . . . 18 4 . . . . . . . . . . . . . 29 . 31 8 7 Robot Hit Streak 45 | . 8 11 8 11 . 6 7 . 10 7 . 8 14 12 7 5 44 16 15 . 5 7 14 15 . 29 23 45 Robot Miss Streak 9 | . 4 4 7 2 . . . . 6 3 . 3 5 2 2 1 3 1 3 . . 3 1 4 . 3 9 2 Penetration Max 1 | . . . . . . . . . 1 . . . . . . . . . . . . . . . . . . . Secondary Targets 11 | . 2 . 8 1 . . . . . . . . . . . . . . . . . . . . . . . . Max Gunslinging Chain 1 | . 1 . 1 1 . . . . . . . . . . . . . . . . . . . . . . . . Shots Hit Robots 1148 | . 66 63 94 44 . 3 1 . 21 12 . 18 32 25 15 12 107 35 8 . 4 10 84 67 . 134 79 214 Core Hits 889 | . 25 56 37 24 . 2 4 . 135 39 . 19 50 11 11 6 43 20 25 . 1 11 81 36 . 102 47 104 Critical Hits 35 | . . . . . . 1 . . 5 . . . . . . . . . . . . . 6 5 . 17 . 1 Critical Kills 17 | . . . . . . 1 . . 3 . . . . . . . . . . . . . 4 3 . 6 . . Critical Parts Destroyed 17 | . . . . . . . . . 2 . . . . . . . . . . . . . 2 2 . 10 . 1 Melee Attacks 1 | . . . . . . . . . . . . . . . . . . . . . . . . . . . 1 . Kinetic 1 | . . . . . . . . . . . . . . . . . . . . . . . . . . . 1 . Impact . | . . . . . . . . . . . . . . . . . . . . . . . . . . . . . Slashing . | . . . . . . . . . . . . . . . . . . . . . . . . . . . . . Piercing . | . . . . . . . . . . . . . . . . . . . . . . . . . . . . . Sneak Attacks . | . . . . . . . . . . . . . . . . . . . . . . . . . . . . . Combat Hostiles . | . . . . . . . . . . . . . . . . . . . . . . . . . . . . . Follow-up Attacks . | . . . . . . . . . . . . . . . . . . . . . . . . . . . . . Damage Inflicted 67940 | . 784 1844 1531 1214 . 75 164 . 3569 1622 . 2807 3312 1242 666 546 5248 1765 1062 . 194 645 5378 2855 . 8541 3986 18890 Guns 3935 | . 784 820 1311 451 . . . . 64 . . . . . . . . . . . . . . . . 221 125 159 Cannons 37538 | . . . . 188 . 75 25 . 453 261 . 569 1668 1242 666 546 4417 1765 242 . 194 414 3743 2855 . 4768 3638 9809 Explosions 26467 | . . 1024 220 575 . . 139 . 3052 1361 . 2238 1644 . . . 831 . 820 . . 231 1635 . . 3552 223 8922 Melee . | . . . . . . . . . . . . . . . . . . . . . . . . . . . . . Ramming . | . . . . . . . . . . . . . . . . . . . . . . . . . . . . . Kinetic 3916 | . 373 283 479 280 . . . . 221 111 . . . . . . . 27 . . . . 490 163 . 369 . 1120 Thermal 45252 | . 411 537 809 359 . 75 25 . . 35 . 569 2375 1242 666 546 4417 1738 242 . 194 414 3253 1874 . 4170 3690 17611 Explosive 15183 | . . 1024 142 575 . . 139 . 3052 1361 . 2238 937 . . . . . 820 . . 231 1635 . . 3029 . . Electromagnetic 3589 | . . . 101 . . . . . 296 115 . . . . . . 831 . . . . . . 818 . 973 296 159 Impact . | . . . . . . . . . . . . . . . . . . . . . . . . . . . . . Slashing . | . . . . . . . . . . . . . . . . . . . . . . . . . . . . . Piercing . | . . . . . . . . . . . . . . . . . . . . . . . . . . . . . Highest Corruption 15 | . . . . . . . . . . 1 . . 1 . . . 11 6 . . . . 2 1 1 15 12 2 Average Corruption 4 | . . . . . . . . . . 1 . . 1 . . . 5 2 . . . . 1 1 1 7 6 1 Corruption Purged 44 | . . . . . . . . . . . . . 1 . . . . 6 . . . . 2 . . 18 15 2 Effects 207 | . . . . . . . . . . 1 . . 9 . . . 24 13 . . . . 3 5 . 98 54 . Message Errors 47 | . . . . . . . . . . 1 . . 3 . . . 6 3 . . . . . 1 . 20 13 . Matter Fused 35 | . . . . . . . . . . . . . . . . . 7 1 . . . . . . . 17 10 . Heat Flow Errors 20 | . . . . . . . . . . . . . . . . . 5 3 . . . . . . . 7 5 . Energy Discharges 30 | . . . . . . . . . . . . . 3 . . . 2 5 . . . . 1 1 . 13 5 . Parts Rejected 2 | . . . . . . . . . . . . . . . . . . . . . . . . . . 2 . . Data Loss (minor) 24 | . . . . . . . . . . . . . 2 . . . 1 . . . . . 1 3 . 7 10 . Data Loss (major) 7 | . . . . . . . . . . . . . . . . . 1 . . . . . . . . 5 1 . Misfires 5 | . . . . . . . . . . . . . . . . . . . . . . . . . . 1 4 . Alerts 3 | . . . . . . . . . . . . . . . . . . . . . . . . . . 2 1 . Misdirections 3 | . . . . . . . . . . . . . . . . . 1 . . . . . . . . 2 . . Targeting Errors 26 | . . . . . . . . . . . . . 1 . . . 1 . . . . . 1 . . 18 5 . Weapon Failures 5 | . . . . . . . . . . . . . . . . . . 1 . . . . . . . 4 . . Overload Shots 3 | . . . . . . . . 3 . . . . . . . . . . . . . . . . . . . . Overflow Damage 4506 | . . . 32 40 . 16 23 . 39 1 . 4 295 30 . 10 357 56 22 . 20 57 266 129 . 552 145 2412 Projectiles 1552 | . . . . . . 16 . . . 1 . 4 115 30 . 10 315 56 22 . 20 42 185 129 . 229 145 233 Explosions 2954 | . . . 32 40 . . 23 . 39 . . . 180 . . . 42 . . . . 15 81 . . 323 . 2179 Melee . | . . . . . . . . . . . . . . . . . . . . . . . . . . . . . Knockbacks 16 | . . . . . . . . . 3 . . . . . . . . . . . . . 3 . . 2 . 8 Impact . | . . . . . . . . . . . . . . . . . . . . . . . . . . . . . Kinetic 16 | . . . . . . . . . 3 . . . . . . . . . . . . . 3 . . 2 . 8 Secondary . | . . . . . . . . . . . . . . . . . . . . . . . . . . . . . Self-Inflicted Damage 2375 | . . 40 47 62 . . . . 27 20 . . 52 . . . 116 . . . . . 89 . . 452 . 1470 Shots 23 | . . 1 2 2 . . . . 2 1 . . 3 . . . 2 . . . . . 2 . . 7 . 1 Rammed . | . . . . . . . . . . . . . . . . . . . . . . . . . . . . . Targets Rammed . | . . . . . . . . . . . . . . . . . . . . . . . . . . . . . Kicked . | . . . . . . . . . . . . . . . . . . . . . . . . . . . . . Crushed . | . . . . . . . . . . . . . . . . . . . . . . . . . . . . . Highest Temperature 524 | . 186 187 315 66 . 40 42 36 78 148 . . . . . . 524 182 . . . . 12 302 . 256 312 151 Average Temperature 90 | . 66 38 95 22 . 21 25 21 25 62 . . . . . . 190 64 . . . . 8 101 . 79 123 59 Received Heat Transfer 2684 | . 360 249 295 126 . . . . 55 67 . . 120 86 4 8 152 108 45 . . 33 214 49 . 200 132 381 Effects 4 | . . . 1 . . . . . . . . . . . . . 1 . . . . . . 1 . . 1 . Energy Bleed 1 | . . . . . . . . . . . . . . . . . . . . . . . . 1 . . . . Interference 2 | . . . . . . . . . . . . . . . . . 1 . . . . . . . . . 1 . Short Circuit 1 | . . . 1 . . . . . . . . . . . . . . . . . . . . . . . . . Siege Activations 6 | . . . . . . . . . . . . . . . . . . . . . . . . . . 3 1 2 Total Turns 166 | . . . . . . . . . . . . . . . . . . . . . . . . . . 124 17 25 Longest Duration 63 | . . . . . . . . . . . . . . . . . . . . . . . . . . 63 17 17 Robots Corrupted 14 | . . . . . . . . . 1 . . . . . . . 2 . . . . . . 7 . 4 . . Combat Hostiles 14 | . . . . . . . . . 1 . . . . . . . 2 . . . . . . 7 . 4 . . Parts Fried 28 | . . . . . . . . . . . . . . . . . 4 . . . . . . 16 . 7 1 . Impact Corruptions . | . . . . . . . . . . . . . . . . . . . . . . . . . . . . . Robots Melted 2 | . . . . . . . . . . . . . . . . . 1 . . . . . . . . 1 . . Combat Hostiles 2 | . . . . . . . . . . . . . . . . . 1 . . . . . . . . 1 . . Parts Melted 54 | . 3 3 1 . . . . . . . . . . 1 . . 9 2 . . . 1 2 1 . 13 6 12 Heat Transferred 26585 | . 1039 1285 1691 703 . 111 37 . . 80 . 325 1275 725 400 325 4992 900 125 . 100 225 1600 800 . 2430 2290 5127 Parts Sabotaged . | . . . . . . . . . . . . . . . . . . . . . . . . . . . . . Parts Stolen . | . . . . . . . . . . . . . . . . . . . . . . . . . . . . . Parts Stripped . | . . . . . . . . . . . . . . . . . . . . . . . . . . . . . Power Chain Reactions 5 | . . . 1 . . . . . . . . . . . . . . . . . . . . . . 3 1 . Missiles Intercepted . | . . . . . . . . . . . . . . . . . . . . . . . . . . . . . Alert | -11 -10 -9 -9 -8 -7 -7 -7 -7 -7 -6 -6 -6 -6 -6 -6 -6 -6 -5 -5 -5 -5 -4 -4 -4 -4 -3 -3 -3 ------- Run | Scr Mat Mat Min Mat Fac Low Low Zio Dee Pro Fac Was Fac Ext Cet Arc Hub Fac Upp Upp Zhi Pro Fac Arm Lab Res Qua Sec Peak Influence 1878 | . 245 413 355 478 146 . . . . . 105 41 509 547 542 287 887 436 . . . . 301 518 . 945 595 1878 Average Influence 248 | . 118 235 191 340 104 . . . . . 76 15 247 368 288 242 494 357 . . . . 153 308 . 210 182 330 Maximum Alert Level 5 | . 1 2 1 2 . . . . . . . . 2 2 2 1 3 2 . . . . 1 2 . 3 2 5 Low Security (%) 48 | . 72 27 68 9 100 . . . . . 100 100 23 . 22 30 20 . . . . . 64 33 . 73 65 41 Level 1 33 | . 27 67 31 54 . . . . . . . . 71 64 70 69 13 62 . . . . 35 32 . 4 26 35 Level 2 14 | . . 5 . 36 . . . . . . . . 5 35 6 . 47 37 . . . . . 33 . 12 7 16 Level 3 2 | . . . . . . . . . . . . . . . . . 18 . . . . . . . . 9 . . Level 4 . | . . . . . . . . . . . . . . . . . . . . . . . . . . . . . Level 5 . | . . . . . . . . . . . . . . . . . . . . . . . . . . . . . High Security . | . . . . . . . . . . . . . . . . . . . . . . . . . . . . . Max Security . | . . . . . . . . . . . . . . . . . . . . . . . . . . . . 6 Squads Dispatched 80 | . 2 2 . 1 . . . . . . . . 10 . . . 5 3 . . . . 6 3 . 13 12 23 Investigation 6 | . 1 1 . 1 . . . . . . . . 2 . . . . . . . . . . . . 1 . . Extermination 36 | . . . . . . . . . . . . . 3 . . . 1 2 . . . . 6 2 . 6 8 8 Reinforcement 16 | . 1 1 . . . . . . . . . . 2 . . . 4 1 . . . . . . . 3 1 3 Assault 15 | . . . . . . . . . . . . . . . . . . . . . . . . 1 . 2 . 12 Garrison 7 | . . . . . . . . . . . . . 3 . . . . . . . . . . . . 1 3 . Intercept . | . . . . . . . . . . . . . . . . . . . . . . . . . . . . . Construction Impeded 1 | . . . . . . . . . . . . . 1 . . . . . . . . . . . . . . . Haulers Reinforced 3 | . . . . . . . . . . . . . 1 . . . . . . . . . . . . 2 . . Stealth | -11 -10 -9 -9 -8 -7 -7 -7 -7 -7 -6 -6 -6 -6 -6 -6 -6 -6 -5 -5 -5 -5 -4 -4 -4 -4 -3 -3 -3 --------- Run | Scr Mat Mat Min Mat Fac Low Low Zio Dee Pro Fac Was Fac Ext Cet Arc Hub Fac Upp Upp Zhi Pro Fac Arm Lab Res Qua Sec Distress Signals 17 | . 1 2 2 . . . . . . . . . 2 . 2 . 1 . . . . . 2 1 . 1 1 2 Communications Jammed 38 | . . . . . . . . . . . . . . . . . . . . . . . 38 . . . . . Distress Signals 38 | . . . . . . . . . . . . . . . . . . . . . . . 38 . . . . . Times Spotted 593 | . 21 38 42 19 . . 3 . 47 16 . 4 38 20 19 4 40 18 6 . . 7 35 34 . 51 32 99 Peak Tracking Total 37 | . 5 8 9 3 . . 3 . 37 6 . 3 7 6 5 1 8 5 4 . . 4 5 6 . 8 5 30 Tactical Retreats 24 | . 2 3 4 2 . . . . . . . . . 3 . . 4 1 . . . 1 . . . . . 4 Traps | -11 -10 -9 -9 -8 -7 -7 -7 -7 -7 -6 -6 -6 -6 -6 -6 -6 -6 -5 -5 -5 -5 -4 -4 -4 -4 -3 -3 -3 ------- Run | Scr Mat Mat Min Mat Fac Low Low Zio Dee Pro Fac Was Fac Ext Cet Arc Hub Fac Upp Upp Zhi Pro Fac Arm Lab Res Qua Sec Traps Triggered 20 | . 1 1 . 3 . . . . . . 1 . 1 3 . . . 2 . . . . 1 . . 2 2 3 Indirectly . | . . . . . . . . . . . . . . . . . . . . . . . . . . . . . Trap Hack Attempts . | . . . . . . . . . . . . . . . . . . . . . . . . . . . . . Triggered . | . . . . . . . . . . . . . . . . . . . . . . . . . . . . . Disarmed . | . . . . . . . . . . . . . . . . . . . . . . . . . . . . . Reprogrammed . | . . . . . . . . . . . . . . . . . . . . . . . . . . . . . Reused . | . . . . . . . . . . . . . . . . . . . . . . . . . . . . . Traps Extracted . | . . . . . . . . . . . . . . . . . . . . . . . . . . . . . Installed . | . . . . . . . . . . . . . . . . . . . . . . . . . . . . . Triggered 7 | . . . . . . . . . . . . . . . . . 2 . 1 . . 4 . . . . . . Machines | -11 -10 -9 -9 -8 -7 -7 -7 -7 -7 -6 -6 -6 -6 -6 -6 -6 -6 -5 -5 -5 -5 -4 -4 -4 -4 -3 -3 -3 ---------- Run | Scr Mat Mat Min Mat Fac Low Low Zio Dee Pro Fac Was Fac Ext Cet Arc Hub Fac Upp Upp Zhi Pro Fac Arm Lab Res Qua Sec Machines Disabled 83 | . . . . 1 . . . 3 3 . . . 4 7 4 . 29 2 . . . . 5 1 1 5 7 11 Max in Single Turn 12 | . . . . 1 . . . 1 . . . . 3 1 1 . 12 1 . . . . 3 1 1 1 1 1 Garrison Access 2 | . . . . . . . . . . . . . . . . . . 1 . . . . . . . 1 . . Network Hub 2 | . . . . . . . . . . . . . . . . . 2 . . . . . . . . . . . Machines Sabotaged . | . . . . . . . . . . . . . . . . . . . . . . . . . . . . . Garrisons Compromised . | . . . . . . . . . . . . . . . . . . . . . . . . . . . . . Overloaded Fab Kills . | . . . . . . . . . . . . . . . . . . . . . . . . . . . . . Fab Network Shutdowns . | . . . . . . . . . . . . . . . . . . . . . . . . . . . . . Hacking | -11 -10 -9 -9 -8 -7 -7 -7 -7 -7 -6 -6 -6 -6 -6 -6 -6 -6 -5 -5 -5 -5 -4 -4 -4 -4 -3 -3 -3 --------- Run | Scr Mat Mat Min Mat Fac Low Low Zio Dee Pro Fac Was Fac Ext Cet Arc Hub Fac Upp Upp Zhi Pro Fac Arm Lab Res Qua Sec Machines Accessed 79 | . 1 2 . 1 2 . 2 . . . . . 6 8 2 . 3 7 . 1 4 . 8 3 . 8 12 9 Terminals 54 | . 1 2 . 1 . . . . . . . . 4 8 2 . 3 3 . . . . 6 2 . 3 10 9 Fabricators 5 | . . . . . 1 . . . . . . . . . . . . 1 . . . . 2 1 . . . . Repair Stations 4 | . . . . . . . . . . . . . . . . . . . . . . . . . . 2 2 . Recycling Units . | . . . . . . . . . . . . . . . . . . . . . . . . . . . . . Scanalyzers 6 | . . . . . . . . . . . . . 2 . . . . 2 . . . . . . . 2 . . Garrison Access 3 | . . . . . 1 . . . . . . . . . . . . 1 . . . . . . . 1 . . Total Hacks 336 | . 2 3 . 2 2 . 9 . . . . . 18 18 5 . 5 27 . 1 17 . 48 11 . 43 81 44 Successful 178 | . . 1 . 2 . . 9 . . . . . 7 8 4 . 2 9 . 1 17 . 24 6 . 29 39 20 Failed 158 | . 2 2 . . 2 . . . . . . . 11 10 1 . 3 18 . . . . 24 5 . 14 42 24 Catastrophic 35 | . 1 . . . 1 . . . . . . . 2 2 1 . 1 5 . . . . 4 . . . 8 10 Database Lockouts . | . . . . . . . . . . . . . . . . . . . . . . . . . . . . . Manual 157 | . 2 3 . 1 . . . 1 . . . . 4 13 6 . 5 8 . . . . 33 3 1 7 40 30 Terminals 219 | . 2 3 . 2 . . . . . . . . 12 18 5 . 5 9 . . . . 33 8 . 13 65 44 Fabricators 27 | . . . . . 1 . . . . . . . . . . . . 8 . . . . 15 3 . . . . Repair Stations 28 | . . . . . . . . . . . . . . . . . . . . . . . . . . 12 16 . Recycling Units . | . . . . . . . . . . . . . . . . . . . . . . . . . . . . . Scanalyzers 30 | . . . . . . . . . . . . . 6 . . . . 8 . . . . . . . 16 . . Garrison Access 5 | . . . . . 1 . . . . . . . . . . . . 2 . . . . . . . 2 . . Terminal Hacks 99 | . . 1 . 2 . . 9 . . . . . 4 6 2 . . . . 1 17 . 11 2 . 2 26 16 Record 14 | . . . . . . . 8 . . . . . . . . . . . . . 5 . . . . . 1 . Part Schematic 10 | . . . . . . . . . . . . . . . . . . . . . 4 . 3 1 . . 1 1 Robot Analysis 4 | . . . . . . . . . . . . . . . . . . . . . 4 . . . . . . . Prototype ID Bank 8 | . . . . 1 . . . . . . . . . 1 . . . . . . 4 . . . . . 2 . Open Door 7 | . . . . . . . 1 . . . . . . . . . . . . 1 . . . . . . 1 4 Level Access Points 1 | . . . . . . . . . . . . . . . . . . . . . . . . . . . 1 . Branch Access Points 5 | . . 1 . 1 . . . . . . . . 1 . . . . . . . . . 1 . . 1 . . Emergency Access Points 1 | . . . . . . . . . . . . . . . . . . . . . . . 1 . . . . . Machine Index 1 | . . . . . . . . . . . . . . . . . . . . . . . . . . . 1 . Terminal Index 1 | . . . . . . . . . . . . . . 1 . . . . . . . . . . . . . . Alert Level 8 | . . . . . . . . . . . . . 1 1 . . . . . . . . 1 . . 1 3 1 Unreport Threat 16 | . . . . . . . . . . . . . . 2 2 . . . . . . . 2 1 . . 5 4 Locate Traps 6 | . . . . . . . . . . . . . . 1 . . . . . . . . 2 . . . 3 . Dispatch Records 2 | . . . . . . . . . . . . . . . . . . . . . . . . . . . 1 1 Recall Extermination 6 | . . . . . . . . . . . . . . . . . . . . . . . . . . . 4 2 Recall Reinforcements 3 | . . . . . . . . . . . . . . . . . . . . . . . . . . . 1 2 Hauler Manifests 2 | . . . . . . . . . . . . . 1 . . . . . . . . . . . . . 1 . Zone Layout 3 | . . . . . . . . . . . . . 1 . . . . . . . . . 1 . . . 1 . Activate Exoskeleton 1 | . . . . . . . . . . . . . . . . . . . . . . . . . . . . 1 Fabricator Hacks 11 | . . . . . . . . . . . . . . . . . . 3 . . . . 6 2 . . . . Network Status 1 | . . . . . . . . . . . . . . . . . . . . . . . 1 . . . . . Load Schematic 4 | . . . . . . . . . . . . . . . . . . 1 . . . . 2 1 . . . . Build 6 | . . . . . . . . . . . . . . . . . . 2 . . . . 3 1 . . . . Repair Station Hacks 18 | . . . . . . . . . . . . . . . . . . . . . . . . . . 10 8 . Scan Component 9 | . . . . . . . . . . . . . . . . . . . . . . . . . . 5 4 . Repair 9 | . . . . . . . . . . . . . . . . . . . . . . . . . . 5 4 . Recycling Unit Hacks . | . . . . . . . . . . . . . . . . . . . . . . . . . . . . . Scanalyzer 19 | . . . . . . . . . . . . . 1 . . . . 4 . . . . . . . 14 . . Insert Component 10 | . . . . . . . . . . . . . 1 . . . . 3 . . . . . . . 6 . . Analyze 9 | . . . . . . . . . . . . . . . . . . 1 . . . . . . . 8 . . Garrison Access Hacks 2 | . . . . . . . . . . . . . . . . . . 1 . . . . . . . 1 . . Seal Access 2 | . . . . . . . . . . . . . . . . . . 1 . . . . . . . 1 . . Unauthorized Hacks 29 | . . . . . . . . . . . . . 2 2 2 . 2 1 . . . . 7 2 . 2 5 4 Terminals 28 | . . . . . . . . . . . . . 2 2 2 . 2 1 . . . . 6 2 . 2 5 4 Track 6 | . . . . . . . . . . . . . . . 1 . 2 . . . . . . 1 . . 1 1 Assimilate 4 | . . . . . . . . . . . . . . . . . . 1 . . . . 1 . . 1 1 . Botnet 13 | . . . . . . . . . . . . . 1 2 1 . . . . . . . 3 . . 1 2 3 Disrupt 4 | . . . . . . . . . . . . . 1 . . . . . . . . . 1 1 . . 1 . Operators 1 | . . . . . . . . . . . . . . . . . . . . . . . 1 . . . . . Fabricators 1 | . . . . . . . . . . . . . . . . . . . . . . . 1 . . . . . Prioritize 1 | . . . . . . . . . . . . . . . . . . . . . . . 1 . . . . . Repair Stations . | . . . . . . . . . . . . . . . . . . . . . . . . . . . . . Recycling Units . | . . . . . . . . . . . . . . . . . . . . . . . . . . . . . Scanalyzers . | . . . . . . . . . . . . . . . . . . . . . . . . . . . . . Garrison Access . | . . . . . . . . . . . . . . . . . . . . . . . . . . . . . Data Cores Recovered . | . . . . . . . . . . . . . . . . . . . . . . . . . . . . . Used . | . . . . . . . . . . . . . . . . . . . . . . . . . . . . . Hacking Detections 63 | . 1 1 . 1 2 . . . . . . . 6 8 2 . 3 5 . . . . 7 2 . 7 9 9 Full Trace Events 3 | . . 1 . . . . . . . . . . 1 . . . . . . . . . . . . 1 . . Feedback Events 1 | . . . . . . . . . . . . . 1 . . . . . . . . . . . . . . . Corruption 1 | . . . . . . . . . . . . . 1 . . . . . . . . . . . . . . . Feedback Blocked . | . . . . . . . . . . . . . . . . . . . . . . . . . . . . . Robot Schematics Acquired . | . . . . . . . . . . . . . . . . . . . . . . . . . . . . . Robots Built . | . . . . . . . . . . . . . . . . . . . . . . . . . . . . . Matter . | . . . . . . . . . . . . . . . . . . . . . . . . . . . . . Time . | . . . . . . . . . . . . . . . . . . . . . . . . . . . . . Total Robot Build Rating . | . . . . . . . . . . . . . . . . . . . . . . . . . . . . . Part Schematics Acquired 15 | . . . . . . . . . . . . . . . . . . 1 . . 4 . 3 1 . 4 1 1 Parts Built 6 | . . . . . . . . . . . . . . . . . . 2 . . . . 3 1 . . . . Matter 1652 | . . . . . . . . . . . . . . . . . . 512 . . . . 855 285 . . . . Time 432 | . . . . . . . . . . . . . . . . . . 128 . . . . 228 76 . . . . Total Part Build Rating 36 | . . . . . . . . . . . . . . . . . . 16 . . . . 15 5 . . . . Parts Repaired 9 | . . . . . . . . . . . . . . . . . . . . . . . . . . 5 4 . Time 288 | . . . . . . . . . . . . . . . . . . . . . . . . . . 162 126 . Parts Recycled . | . . . . . . . . . . . . . . . . . . . . . . . . . . . . . Recycled Matter . | . . . . . . . . . . . . . . . . . . . . . . . . . . . . . Retrieved Matter . | . . . . . . . . . . . . . . . . . . . . . . . . . . . . . Retrieved Components . | . . . . . . . . . . . . . . . . . . . . . . . . . . . . . Parts Scanalyzed 6 | . . . . . . . . . . . . . 1 . . . . 1 . . . . . . . 4 . . Part Schematics Acquired 5 | . . . . . . . . . . . . . . . . . . 1 . . . . . . . 4 . . Parts Damaged 1 | . . . . . . . . . . . . . . . . . . 1 . . . . . . . . . . Bothacking | -11 -10 -9 -9 -8 -7 -7 -7 -7 -7 -6 -6 -6 -6 -6 -6 -6 -6 -5 -5 -5 -5 -4 -4 -4 -4 -3 -3 -3 ------------ Run | Scr Mat Mat Min Mat Fac Low Low Zio Dee Pro Fac Was Fac Ext Cet Arc Hub Fac Upp Upp Zhi Pro Fac Arm Lab Res Qua Sec Used RIF Installer . | . . . . . . . . . . . . . . . . . . . . . . . . . . . . . Robots Hacked 1 | . . . . . . . . . 1 . . . . . . . . . . . . . . . . . . . Non-combat . | . . . . . . . . . . . . . . . . . . . . . . . . . . . . . Combat 1 | . . . . . . . . . 1 . . . . . . . . . . . . . . . . . . . Robot Hacks Applied 1 | . . . . . . . . . 1 . . . . . . . . . . . . . . . . . . . parse_system 1 | . . . . . . . . . 1 . . . . . . . . . . . . . . . . . . . Relay Couplers Released . | . . . . . . . . . . . . . . . . . . . . . . . . . . . . . Robots Rewired 22 | . . . . . . . . . . . . . . 14 . . . . . . . . . 8 . . . . Allies Hacked 3 | . . . . . . . . . . . . . . . . . . . . . . . . 2 . 1 . . Hacks Repelled . | . . . . . . . . . . . . . . . . . . . . . . . . . . . . . Allies | -11 -10 -9 -9 -8 -7 -7 -7 -7 -7 -6 -6 -6 -6 -6 -6 -6 -6 -5 -5 -5 -5 -4 -4 -4 -4 -3 -3 -3 -------- Run | Scr Mat Mat Min Mat Fac Low Low Zio Dee Pro Fac Was Fac Ext Cet Arc Hub Fac Upp Upp Zhi Pro Fac Arm Lab Res Qua Sec Total Allies 71 | . . . . . . . 2 4 1 . . 18 3 22 1 . . . . . . . 1 8 . 1 1 9 Largest Group 18 | . . . . . . . 2 4 5 1 . 18 16 13 13 5 2 . . . . . 1 5 . 1 1 6 Highest-Rated Group 1205 | . . . . . . . 51 256 374 94 . 668 568 518 518 338 131 . . . . . 44 228 . 44 44 1205 Highest-Rated Ally 1075 | . . . . . . . 31 94 118 94 . 50 46 156 156 156 94 . . . . . 44 60 . 44 44 1075 Total Orders 36 | . . . . . . . . . . . . . . . . . 1 . . . . 2 4 16 . 10 3 . STAY 11 | . . . . . . . . . . . . . . . . . 1 . . . . . 1 4 . 5 . . GOTO 10 | . . . . . . . . . . . . . . . . . . . . . . 1 1 5 . 1 2 . FOLLOW 15 | . . . . . . . . . . . . . . . . . . . . . . 1 2 7 . 4 1 . Ally Attacks 747 | . . . . . . . 7 . 98 18 . 31 161 122 111 10 11 . . . . . . 70 . . . 108 Total Damage 19412 | . . . . . . . 84 . 4016 693 . 526 3189 2401 2606 355 432 . . . . . . 1088 . . . 4022 Kills 112 | . . . . . . . . . 20 9 . 2 26 16 19 2 2 . . . . . . 8 . . . 8 Allies Corrupted 3 | . . . . . . . . . . . . . . . . . . . . . . . . 3 . . . . Allies Melted . | . . . . . . . . . . . . . . . . . . . . . . . . . . . . . Intel | -11 -10 -9 -9 -8 -7 -7 -7 -7 -7 -6 -6 -6 -6 -6 -6 -6 -6 -5 -5 -5 -5 -4 -4 -4 -4 -3 -3 -3 ------- Run | Scr Mat Mat Min Mat Fac Low Low Zio Dee Pro Fac Was Fac Ext Cet Arc Hub Fac Upp Upp Zhi Pro Fac Arm Lab Res Qua Sec Robot Analysis Total 4 | . . . . . . . . . . . . . . . . . . . . . 4 . . . . . . . Derelict Logs Recovered 9 | . . . 2 . . 1 1 2 . 1 . . . . . . . . . . . 2 . . . . . . Drone Launches 5 | . . . . . . . . . . . . . . 2 . . . . 3 . . . . . . . . . Drone Recoveries . | . . . . . . . . . . . . . . . . . . . . . . . . . . . . . Exploration | -11 -10 -9 -9 -8 -7 -7 -7 -7 -7 -6 -6 -6 -6 -6 -6 -6 -6 -5 -5 -5 -5 -4 -4 -4 -4 -3 -3 -3 ------------- Run | Scr Mat Mat Min Mat Fac Low Low Zio Dee Pro Fac Was Fac Ext Cet Arc Hub Fac Upp Upp Zhi Pro Fac Arm Lab Res Qua Sec Turns Passed 30824 | . 518 1099 1499 517 557 554 580 1359 1194 734 546 586 1455 974 445 102 1537 1835 334 474 249 705 2572 1303 84 3337 2975 2700 Spaces Moved 13179 | 1 245 493 649 210 298 282 309 742 561 329 88 244 675 445 224 45 615 786 202 294 155 382 1034 469 38 1090 1232 1042 Core . | . . . . . . . . . . . . . . . . . . . . . . . . . . . . . Treads 6026 | . 20 493 1 200 298 282 309 742 561 329 25 . . . . . . . . . . . . 426 38 972 752 578 Legs 7153 | 1 225 . 648 10 . . . . . . 63 244 675 445 224 45 615 786 202 294 155 382 1034 43 . 118 480 464 Wheels . | . . . . . . . . . . . . . . . . . . . . . . . . . . . . . Hover . | . . . . . . . . . . . . . . . . . . . . . . . . . . . . . Flight . | . . . . . . . . . . . . . . . . . . . . . . . . . . . . . Fastest Speed 120 | 120 120 160 180 160 160 180 180 180 180 180 170 170 170 170 170 170 150 150 150 150 140 140 140 190 190 180 160 150 Average Speed 169 | 120 123 167 184 181 177 180 180 180 180 185 172 170 170 170 170 170 167 153 150 150 145 140 144 191 190 188 175 169 Slowest Speed 270 | 120 160 180 270 210 180 180 180 180 180 200 180 170 170 170 170 170 190 190 150 150 150 140 230 230 190 230 240 210 Overloaded Moves . | . . . . . . . . . . . . . . . . . . . . . . . . . . . . . Propulsion Burnouts . | . . . . . . . . . . . . . . . . . . . . . . . . . . . . . Robots Hopped . | . . . . . . . . . . . . . . . . . . . . . . . . . . . . . Cave-ins Triggered 1 | . . . . . . . . . . . . . . . . . 1 . . . . . . . . . . . Teleports 4 | . . . . . . . . . . . . . . . . . . . . . . . . 1 . . 1 2 Exploration Rate (%) 48 | 1 57 36 93 26 7 48 55 85 73 51 3 87 25 73 69 62 48 23 46 51 60 66 25 22 43 26 90 59 Regions Visited 28 Branch Regions 18 Pre-discovered Areas 8 | . . . 2 . . . 2 1 . . . . . . . . . . . . 3 . . . . . . . Known Exits Taken 22 | . . 1 . . 1 1 1 1 1 1 . . 1 1 1 1 1 1 1 1 1 1 1 1 1 1 1 . Unknown Exits Taken 4 | 1 1 . 1 1 . . . . . . . . . . . . . . . . . . . . . . . . Scrap Searched 9 | . . . 1 . . 1 1 3 . . . . . . . . . . 2 1 . . . . . . . . Spaces Dug 145 | . . . . . . 5 5 . . 14 . . 25 . . . 7 5 . 4 . 3 13 . . 29 14 21 Terrain Destroyed 1379 | . . 94 12 57 . 6 9 . 29 120 . 87 80 8 9 3 357 16 42 6 . 20 100 12 . 212 37 63 Melee . | . . . . . . . . . . . . . . . . . . . . . . . . . . . . . Projectile 259 | . . . . . . 6 . . . . . 2 20 8 9 3 21 16 3 6 . 5 36 12 . 41 26 45 AOE 1120 | . . 94 12 57 . . 9 . 29 120 . 85 60 . . . 336 . 39 . . 15 64 . . 171 11 18 Actions | -11 -10 -9 -9 -8 -7 -7 -7 -7 -7 -6 -6 -6 -6 -6 -6 -6 -6 -5 -5 -5 -5 -4 -4 -4 -4 -3 -3 -3 --------- Run | Scr Mat Mat Min Mat Fac Low Low Zio Dee Pro Fac Was Fac Ext Cet Arc Hub Fac Upp Upp Zhi Pro Fac Arm Lab Res Qua Sec Total 19830 | . 358 669 788 285 329 312 329 764 709 426 486 389 915 619 258 55 987 1377 220 322 177 535 1967 776 46 2151 1919 1662 Wait 4240 | . 35 59 27 10 . 11 14 4 62 69 388 111 153 17 18 1 204 495 . 24 . 138 772 152 . 765 449 262 Move 13152 | . 244 492 648 209 297 281 308 741 560 328 88 243 674 444 223 44 614 785 201 293 154 381 1033 468 37 1089 1231 1042 Hop . | . . . . . . . . . . . . . . . . . . . . . . . . . . . . . Pick Up 165 | . 3 23 5 8 10 1 . 2 13 2 1 4 6 1 . . 8 15 . 1 4 . 6 10 . 14 21 7 Fast Attach 114 | . 1 5 2 7 6 . . 2 5 . . . 4 1 1 1 6 5 . . 5 . 4 4 1 12 16 26 Attach 114 | . 5 5 11 5 1 . 1 1 1 4 1 2 1 . . . 6 4 1 . 1 1 13 6 . 20 11 13 Detach 157 | . . 2 3 3 4 . 1 3 3 1 4 4 3 1 . 1 11 11 2 . 3 2 19 7 1 25 21 22 Swap 324 | . 2 10 8 5 2 1 2 3 18 9 1 1 19 4 . . 16 16 8 . . 2 27 18 . 53 49 50 Drop 168 | . 4 7 2 4 9 1 . 5 18 . 3 5 8 3 1 . 14 9 . 1 6 . 5 6 2 12 25 18 Fire 1226 | . 64 66 82 34 . 17 3 3 28 13 . 19 42 32 15 8 108 37 7 3 4 11 88 60 5 161 94 222 Melee 1 | . . . . . . . . . . . . . . . . . . . . . . . . . . . 1 . Ram . | . . . . . . . . . . . . . . . . . . . . . . . . . . . . . Kick . | . . . . . . . . . . . . . . . . . . . . . . . . . . . . . Crush . | . . . . . . . . . . . . . . . . . . . . . . . . . . . . . Escape Stasis 25 | . . . . . . . . . . . . . 5 19 . . . . . . . . . . . . 1 . Rewire 142 | . . . . . . . . . 1 . . . . 96 . . . . . . . . . 45 . . . . Trap . | . . . . . . . . . . . . . . . . . . . . . . . . . . . . . Miscellaneous 2 | . . . . . . . . . . . . . . 1 . . . . 1 . . . . . . . . . Route ------- -11/Scrapyard -10/Materials (discovered 2 exits: *Mat x2) -9/Materials (discovered 3 exits: *Min / *Sto x2) -9/Mines -8/Materials -7/Factory -7/Lower Caves -7/Lower Caves -7/Zion (discovered 2 exits: *Dee / [*Pro]) -7/Deep Caves -6/Proximity Caves -6/Factory (discovered 3 exits: Fac / Low x2) -6/Waste -6/Factory (discovered 4 exits: Low x2 / *Ext x2) -6/Extension (discovered 2 exits: *Fac / *Cet) -6/Cetus (discovered 2 exits: *Fac / *Arc) -6/Archives -6/Hub_04(d) -5/Factory -5/Upper Caves -5/Upper Caves (discovered 2 exits: Fac / *Zhi) -5/Zhirov -4/Proximity Caves -4/Factory (discovered 4 exits: *Res / Upp x2 / *Arm) -4/Armory -4/Lab -3/Research (discovered 3 exits: Res / *Qua x2) -3/Quarantine (discovered 2 exits: *Res / *Sec) -3/Section 7 (discovered 1 exit: *Res) History --------- Turn | Location | Event 1 | -11/Scrapyard | Discovered new exit (range 0) 1 | -11/Scrapyard | Entered Materials 167 | -10/Materials | Discovered new exit (range 4) 289 | -10/Materials | Discovered new exit (range 16) 302 | -10/Materials | Build established: Mutant 407 | -10/Materials | Core integrity fell below 50% 481 | -10/Materials | Core integrity fell below 20% 495 | -10/Materials | Lost 3 parts (2n1w) 519 | -10/Materials | Entered another Materials area 519 | -9/Materials | Evolved 2 slots: Utility x2 636 | -9/Materials | Destroyed 7 combat bots 637 | -9/Materials | Discovered new exit (range 16) 1469 | -9/Materials | Identified exit to Mines 1469 | -9/Materials | Identified exit to Storage 1618 | -9/Materials | Entered Mines 1619 | -9/Mines | Assembled infested the area 1722 | -9/Mines | Lost 4 parts (1p1n2w) 1789 | -9/Mines | Build established: Hauler-Mutant 2249 | -9/Mines | Learned location of Storage (-9) 2322 | -9/Mines | Core integrity fell below 50% 2493 | -9/Mines | Found a damaged Exp. Sensor Array with a note attached 2497 | -9/Mines | Found Prototype Device 2577 | -9/Mines | Learned Materials emergency access door positions 3057 | -9/Mines | Discovered new exit (range 6) 3081 | -9/Mines | Core integrity fell below 20% 3117 | -9/Mines | Entered Materials 3117 | -8/Materials | Evolved 2 slots: Utility x2 3622 | -8/Materials | Discovered new exit (range 4) 3634 | -8/Materials | Entered Factory 3634 | -7/Factory | Evolved 2 slots: Utility x2 3819 | -7/Factory | Discovered new exit (range 7) 3837 | -7/Factory | Identified exit to Lower Caves 4191 | -7/Factory | Entered Lower Caves 4258 | -7/Lower Caves | Spotted B-75 Beast 4707 | -7/Lower Caves | Discovered new exit (range 5) 4722 | -7/Lower Caves | Identified exit to Lower Caves 4745 | -7/Lower Caves | Entered another Lower Caves area 4832 | -7/Lower Caves | Identified Exp. Sensor Array 4838 | -7/Lower Caves | Encountered a Warlord checkpoint 4972 | -7/Lower Caves | A Commander dispatched an escort 4991 | -7/Lower Caves | Learned location of Armory (-4) 4991 | -7/Lower Caves | Learned 8 Factory zone layouts 4991 | -7/Lower Caves | Learned Armory emergency access door positions 4991 | -7/Lower Caves | Learned Research stockpile data 4991 | -7/Lower Caves | Learned Extension stockpile data 4991 | -7/Lower Caves | Learned Research terminal intel 5310 | -7/Lower Caves | Discovered new exit (range 5) 5319 | -7/Lower Caves | Identified exit to Zion 5325 | -7/Lower Caves | Entered Zion 5325 | -7/Zion | Accompanied by 2 allies 5326 | -7/Zion | Commander's escort returned to base 5326 | -7/Zion | Commander's escort returned to base 5441 | -7/Zion | Gained Derelict followers 5491 | -7/Zion | Discovered new exit (range 20) 6055 | -7/Zion | Found Prototype Device 6078 | -7/Zion | Identified Mobile Refinery Mk. CCLXVII 6113 | -7/Zion | Given A8's code to call for help 6144 | -7/Zion | Found Prototype Launcher 6144 | -7/Zion | Identified Rocket Array 6241 | -7/Zion | Learned location of Warlord (-4) 6253 | -7/Zion | Learned 8 Factory zone layouts 6437 | -7/Zion | Learned Factory emergency access door positions 6628 | -7/Zion | Discovered new exit (range 4) 6628 | -7/Zion | Saw the warning signs outside the Deep Caves entrance 6654 | -7/Zion | Enhanced Grunt warped into view, answering call for help 6658 | -7/Zion | Enhanced Grunt warped into view, answering call for help 6677 | -7/Zion | Identified exit to Deep Caves 6684 | -7/Zion | Entered Deep Caves 6684 | -7/Deep Caves | Accompanied by 4 allies 6686 | -7/Deep Caves | Met 5H-AD0 6952 | -7/Deep Caves | Z-Facility disabled 6973 | -7/Deep Caves | Attacked by Z-Imprinter 6981 | -7/Deep Caves | Allies destroyed Z-Imprinter 6993 | -7/Deep Caves | Found Prototype Device 6993 | -7/Deep Caves | Identified Zio. Metafield Generator 7004 | -7/Deep Caves | Found Zio. Weapon Casing 7024 | -7/Deep Caves | Found Zio. Weapon Casing 7029 | -7/Deep Caves | Found Zio. Weapon Casing 7185 | -7/Deep Caves | Found Prototype Protection 7185 | -7/Deep Caves | Identified Zio. Heavy Carapace 7191 | -7/Deep Caves | Found Zio. Weapon Casing 7205 | -7/Deep Caves | Found Zio. Heavy Carapace 7361 | -7/Deep Caves | Discovered new exit (range 5) 7445 | -7/Deep Caves | Spotted as-23003 7447 | -7/Deep Caves | Destroyed as-23003 7481 | -7/Deep Caves | Triggered Deep Caves wall 7481 | -7/Deep Caves | Spotted AS-41042 7498 | -7/Deep Caves | Exposed GOLEM chamber 7509 | -7/Deep Caves | Spotted AS-96663 7509 | -7/Deep Caves | Allies destroyed AS-41042 7517 | -7/Deep Caves | Allies destroyed AS-96663 7523 | -7/Deep Caves | Found GOLEM Unit 7526 | -7/Deep Caves | Destroyed 35 combat bots 7546 | -7/Deep Caves | Triggered Deep Caves wall 7557 | -7/Deep Caves | Spotted as-35528 7575 | -7/Deep Caves | Destroyed as-35528 7643 | -7/Deep Caves | Found Prototype Energy Cannon 7643 | -7/Deep Caves | Identified Gui. Plasma Cannon 7682 | -7/Deep Caves | Found GOLEM Unit 7714 | -7/Deep Caves | Found GOLEM Unit 7754 | -7/Deep Caves | Found GOLEM Unit 7873 | -7/Deep Caves | Identified exit to Proximity Caves 7878 | -7/Deep Caves | Entered Proximity Caves 7878 | -6/Proximity Caves | Accompanied by 1 ally 7947 | -6/Proximity Caves | Learned 4 Factory zone layouts 8084 | -6/Proximity Caves | Attacked by a faux Warlord 8603 | -6/Proximity Caves | Discovered new exit (range 5) 8610 | -6/Proximity Caves | Identified exit to Factory 8612 | -6/Proximity Caves | Entered Factory 8612 | -6/Factory | Evolved 2 slots: Utility x2 8613 | -6/Factory | Identified exit to Lower Caves 8614 | -6/Factory | Identified exit to Factory 8953 | -6/Factory | Build established: Hauler-Golem 9158 | -6/Factory | Sucked down chute 9158 | -6/Factory | Entered Waste 9316 | -6/Waste | Spotted C-40 Crusher 9316 | -6/Waste | Spotted C-40 Crusher 9316 | -6/Waste | Spotted C-40 Crusher 9320 | -6/Waste | Destroyed C-40 Crusher 9320 | -6/Waste | Destroyed C-40 Crusher 9324 | -6/Waste | Destroyed C-40 Crusher 9340 | -6/Waste | Spotted C-40 Crusher 9349 | -6/Waste | Destroyed C-40 Crusher 9418 | -6/Waste | Spotted C-40 Crusher 9430 | -6/Waste | Warlord forces began an assault 9436 | -6/Waste | Allies destroyed C-40 Crusher 9605 | -6/Waste | Found Damper Plating 9635 | -6/Waste | Found Adv. Powered Armor 9718 | -6/Waste | Discovered new exit (range 13) 9736 | -6/Waste | Identified exit to Factory 9744 | -6/Waste | Entered Factory 9744 | -6/Factory | Accompanied by 16 allies 9869 | -6/Factory | Spotted B-75 Beast 9881 | -6/Factory | Allies destroyed B-75 Beast 10109 | -6/Factory | Garrison activated, responded to threat 10277 | -6/Factory | Assembled infested ambush trap array 10764 | -6/Factory | Identified exit to Extension 11086 | -6/Factory | Build established: Hauler-Mutant 11190 | -6/Factory | Destroyed 7 combat bots 11199 | -6/Factory | Entered Extension 11305 | -6/Extension | Rescued a captive Derelict 11305 | -6/Extension | Rescued a captive Derelict 11631 | -6/Extension | Rescued a captive Derelict 11653 | -6/Extension | Build established: Commander-Golem 11674 | -6/Extension | Spotted B-75 Beast 11686 | -6/Extension | Spotted B-75 Beast 11699 | -6/Extension | Allies destroyed B-75 Beast 11702 | -6/Extension | Allies destroyed B-75 Beast 11728 | -6/Extension | Lost 4 parts (1p2u1w) 11792 | -6/Extension | Rescued a captive Derelict 11793 | -6/Extension | Rescued a captive Derelict 11903 | -6/Extension | Rescued A7 11937 | -6/Extension | Rescued a captive Derelict 11973 | -6/Extension | Rescued a captive Derelict 12141 | -6/Extension | Discovered exit to Factory (range 10) 12143 | -6/Extension | Discovered new exit (range 6) 12163 | -6/Extension | Identified exit to Cetus 12173 | -6/Extension | Entered Cetus 12173 | -6/Cetus | Accompanied by 15 allies 12178 | -6/Cetus | Acquired a Cetus Manufacturing Module code from A7 12195 | -6/Cetus | Spotted Cetus Guard 12195 | -6/Cetus | Spotted Cetus Guard 12197 | -6/Cetus | Spotted Cetus Guard 12199 | -6/Cetus | Spotted Cetus Guard 12202 | -6/Cetus | Allies destroyed Cetus Guard 12204 | -6/Cetus | Allies destroyed Cetus Guard 12208 | -6/Cetus | Allies destroyed Cetus Guard 12209 | -6/Cetus | Allies destroyed Cetus Guard 12286 | -6/Cetus | Started Cetus Manufacturing Module 12311 | -6/Cetus | Manufactured an Enhanced Grunt 12316 | -6/Cetus | Discovered new exit (range 16) 12317 | -6/Cetus | Cetus Manufacturing Module disabled 12351 | -6/Cetus | Spotted Cetus Guard 12351 | -6/Cetus | Spotted Cetus Guard 12355 | -6/Cetus | Spotted Cetus Guard 12356 | -6/Cetus | Allies destroyed Cetus Guard 12356 | -6/Cetus | Spotted Cetus Guard 12357 | -6/Cetus | Destroyed Cetus Guard 12362 | -6/Cetus | Allies destroyed Cetus Guard 12370 | -6/Cetus | Destroyed Cetus Guard 12380 | -6/Cetus | Discovered exit to Factory (range 15) 12388 | -6/Cetus | Met Revision 17 12445 | -6/Cetus | Identified exit to Archives 12565 | -6/Cetus | Escorted A7 to Cetus Mainframe 12582 | -6/Cetus | Build established: Hauler-Golem 12618 | -6/Cetus | Entered Archives 12618 | -6/Archives | Accompanied by 5 allies 12623 | -6/Archives | Received a hacking code to weaken MAIN.C 12676 | -6/Archives | Discovered new exit (range 16) 12716 | -6/Archives | Identified exit to Hub_04(d) 12720 | -6/Archives | Entered Hub_04(d) 12720 | -6/Hub_04(d) | Accompanied by 2 allies 13009 | -6/Hub_04(d) | Build established: Hauler-Mutant 13136 | -6/Hub_04(d) | Discovered exit to Factory (range 16) 13242 | -6/Hub_04(d) | Network Hub disabled 13264 | -6/Hub_04(d) | Spotted Lightning 13264 | -6/Hub_04(d) | Spotted Lightning 13264 | -6/Hub_04(d) | Spotted Lightning 13326 | -6/Hub_04(d) | Destroyed Lightning 13329 | -6/Hub_04(d) | Spotted Lightning 13333 | -6/Hub_04(d) | Spotted Lightning 13343 | -6/Hub_04(d) | Destroyed Lightning 13371 | -6/Hub_04(d) | Destroyed Lightning 13406 | -6/Hub_04(d) | Destroyed Lightning 13445 | -6/Hub_04(d) | Found Prototype Device 13445 | -6/Hub_04(d) | Identified EM Dispersion Field 13469 | -6/Hub_04(d) | Found Prototype Processor 13469 | -6/Hub_04(d) | Identified Exp. Targeting Computer 13502 | -6/Hub_04(d) | Found Prototype Energy Cannon 13542 | -6/Hub_04(d) | Found Prototype Device 13542 | -6/Hub_04(d) | Identified Exp. Phase Shifter 13792 | -6/Hub_04(d) | Crushed by falling debris 13846 | -6/Hub_04(d) | Build established: Hauler-Golem 13970 | -6/Hub_04(d) | Network Hub disabled 13991 | -6/Hub_04(d) | Spotted Lightning 14024 | -6/Hub_04(d) | Destroyed Lightning 14033 | -6/Hub_04(d) | System corruption reached 10% 14052 | -6/Hub_04(d) | Destroyed Lightning 14257 | -6/Hub_04(d) | Entered Factory 14257 | -5/Factory | Evolved 2 slots: Utility x2 14699 | -5/Factory | Build established: Hauler-Mutant 15183 | -5/Factory | Build established: Hauler-Golem 15663 | -5/Factory | Fabricated Adv. Powered Armor (x1) 15731 | -5/Factory | Fabricated Adv. Powered Armor (x1) 15783 | -5/Factory | Discovered new exit (range 5) 15789 | -5/Factory | Identified exit to Upper Caves 16092 | -5/Factory | Entered Upper Caves 16186 | -5/Upper Caves | Encountered a Warlord checkpoint 16389 | -5/Upper Caves | Discovered new exit (range 11) 16424 | -5/Upper Caves | Identified exit to Upper Caves 16426 | -5/Upper Caves | Entered another Upper Caves area 16426 | -5/Upper Caves | Accompanied by 2 allies 16546 | -5/Upper Caves | Discovered new exit (range 15) 16875 | -5/Upper Caves | Discovered new exit (range 16) 16894 | -5/Upper Caves | Identified exit to Zhirov 16900 | -5/Upper Caves | Entered Zhirov 16900 | -5/Zhirov | Accompanied by 2 allies 16900 | -5/Zhirov | Discovered new exit (range 3) 16929 | -5/Zhirov | Met Zhirov 16962 | -5/Zhirov | Learned location of Quarantine (-3) 16962 | -5/Zhirov | Learned location of Testing (-2) 16962 | -5/Zhirov | Learned location of Command (-1) 16971 | -5/Zhirov | Zhirov requested help retrieving the SGEMP Prototype 16995 | -5/Zhirov | Found Alien Artifact 16995 | -5/Zhirov | Identified Integrated Reactor 16995 | -5/Zhirov | Installed Integrated Reactor, increased core energy generation (+2%) 17092 | -5/Zhirov | Found Alien Artifact 17145 | -5/Zhirov | Identified exit to Proximity Caves 17149 | -5/Zhirov | Entered Proximity Caves 17149 | -4/Proximity Caves | Accompanied by 2 allies 17229 | -4/Proximity Caves | Learned Research terminal intel 17280 | -4/Proximity Caves | Build established: Hauler-Mutant 17781 | -4/Proximity Caves | Discovered new exit (range 7) 17788 | -4/Proximity Caves | Identified exit to Factory 17854 | -4/Proximity Caves | Entered Factory 17854 | -4/Factory | Accompanied by 1 ally 17854 | -4/Factory | Evolved 2 slots: Utility x2 17855 | -4/Factory | Identified exit to Armory 17914 | -4/Factory | Identified exit to Upper Caves 17927 | -4/Factory | Discovered new exit (range 9) 18093 | -4/Factory | Fabricated Exp. Signal Interpreter? 18552 | -4/Factory | Build established: Hauler-Golem 18783 | -4/Factory | Lost 3 parts (1p2u) 18976 | -4/Factory | Fabricated Exp. Utility Shielding (x1) 19040 | -4/Factory | Build established: Hauler-Mutant 19061 | -4/Factory | Fabricated Exp. Utility Shielding (x1) 19957 | -4/Factory | Found Exp. Terrain Scan Processor 20058 | -4/Factory | Build established: Hauler-Golem 20426 | -4/Factory | Entered Armory 20426 | -4/Armory | Accompanied by 1 ally 20603 | -4/Armory | Found Fusion Bomb Launcher 20839 | -4/Armory | Build established: Hauler-Mutant 21176 | -4/Armory | First assault squad dispatched 21178 | -4/Armory | Spotted B-86 Titan 21195 | -4/Armory | Destroyed B-86 Titan 21580 | -4/Armory | Fabricated Exp. Utility Shielding? 21581 | -4/Armory | Found Gamma Bomb Array 21584 | -4/Armory | Found Gamma Bomb Array 21703 | -4/Armory | Identified Transdimensional Reconstructor 21703 | -4/Armory | Warped through subspace to slip node 21703 | -4/Armory | Discovered new exit (range 1) 21703 | -4/Armory | Identified exit to Lab 21729 | -4/Armory | Entered Lab 21729 | -4/Lab | Discovered new exit (range 9) 21743 | -4/Lab | Identified exit to Research 21754 | -4/Lab | Unable to decrypt terminal 21754 | -4/Lab | Opened the door to a hidden lab 21755 | -4/Lab | Gained access to the hidden lab's interior 21784 | -4/Lab | Found Alien Artifact 21784 | -4/Lab | Identified Core Reset Matrix 21784 | -4/Lab | Used Core Reset Matrix 21788 | -4/Lab | Sensed 3 artifacts in vicinity 21800 | -4/Lab | Discovered exit to Research (range 6) 21813 | -4/Lab | Entered Research 21813 | -3/Research | Evolved 2 slots: Propulsion x1, Utility x1 22201 | -3/Research | Identified exit to Quarantine 22320 | -3/Research | Discovered new exit (range 11) 22677 | -3/Research | Build established: Hauler-Golem 22917 | -3/Research | Found Prototype Device 22918 | -3/Research | Identified Exp. Focal Shield 22923 | -3/Research | Found Exp. Focal Shield 23010 | -3/Research | Repaired Adv. Powered Armor 23045 | -3/Research | Repaired Exp. Utility Shielding? 23353 | -3/Research | Build established: Hauler-Mutant 23857 | -3/Research | System corruption reached 10% 24081 | -3/Research | Found Prototype Processor 24088 | -3/Research | Identified Exp. Melee Analysis Suite 24128 | -3/Research | Found Prototype Device 24128 | -3/Research | Identified EM Disruption Field 24186 | -3/Research | Spotted B-86 Titan 24235 | -3/Research | Destroyed B-86 Titan 24417 | -3/Research | Garrison activated, responded to threat 24454 | -3/Research | Destroyed 9 combat bots 24656 | -3/Research | Repaired Exp. Utility Shielding 24700 | -3/Research | Repaired Exp. Utility Shielding 24735 | -3/Research | Repaired Adv. Powered Armor 24813 | -3/Research | First assault squad dispatched 24876 | -3/Research | Destroyed 8 combat bots 25150 | -3/Research | Entered Quarantine 25151 | -3/Quarantine | Detected hypermatrix surge 25151 | -3/Quarantine | Sensed 15 artifacts in vicinity 25237 | -3/Quarantine | Repaired Exp. Utility Shielding? 25284 | -3/Quarantine | Repaired Exp. Utility Shielding? 25304 | -3/Quarantine | Repaired Lrg. Storage Unit 25325 | -3/Quarantine | Build established: Hauler-Golem 25467 | -3/Quarantine | Garrison activated, responded to threat 25582 | -3/Quarantine | Found Subatomic Replicator 25864 | -3/Quarantine | Cryocooling Duct disabled 25879 | -3/Quarantine | Ambient heat levels rising (+20) 25879 | -3/Quarantine | Non-combat units ordered to evacuate 25946 | -3/Quarantine | Build established: Hauler-Mutant 26136 | -3/Quarantine | Discovered new exit (range 15) 26158 | -3/Quarantine | Identified exit to Research 26177 | -3/Quarantine | Found Core Stripper 26246 | -3/Quarantine | Found Sigix Terminator 26575 | -3/Quarantine | Found Hpw. Transdimensional Reconstructor 26580 | -3/Quarantine | Found Transdimensional Reconstructor 26591 | -3/Quarantine | Found Dimensional Node Initializer 26660 | -3/Quarantine | Repaired Particle Accelerator 26987 | -3/Quarantine | Initialized slip node 27598 | -3/Quarantine | Met incapacitated Sigix Warrior 27598 | -3/Quarantine | Lockdown squad dispatched 27607 | -3/Quarantine | Acquired the access code to the Sigix quarantine chamber 27610 | -3/Quarantine | Unlocked Sigix quarantine chamber 27659 | -3/Quarantine | Warped through subspace to slip node 27802 | -3/Quarantine | Spotted Fortress 27809 | -3/Quarantine | Destroyed Fortress 27828 | -3/Quarantine | Found Prototype Device 27828 | -3/Quarantine | Identified Exp. Force Field 27833 | -3/Quarantine | Found Prototype Device 27833 | -3/Quarantine | Identified Thermal Barrier 27844 | -3/Quarantine | Found Unknown Device 27844 | -3/Quarantine | Identified Antimissile System 27853 | -3/Quarantine | Found Prototype Device 27853 | -3/Quarantine | Identified EM Dispersion Field 27895 | -3/Quarantine | Found Prototype Protection 28025 | -3/Quarantine | Discovered new exit (range 9) 28039 | -3/Quarantine | Identified exit to Section 7 28125 | -3/Quarantine | Entered Section 7 28126 | -3/Section 7 | Sensed 24 artifacts in vicinity 28464 | -3/Section 7 | Spotted S7 Guard 28471 | -3/Section 7 | Found Integrated Singularity Reactor 28471 | -3/Section 7 | Installed Integrated Singularity Reactor, increased core energy generation (+2%) 28514 | -3/Section 7 | Destroyed S7 Guard 28592 | -3/Section 7 | Found Integrated Dissipator 28592 | -3/Section 7 | Installed Integrated Dissipator, increased core heat dissipation (+2%) 28732 | -3/Section 7 | Destroyed 7 combat bots 28755 | -3/Section 7 | Identified Centrium Heavy Armor Plating 29020 | -3/Section 7 | Spotted S7 Guard 29027 | -3/Section 7 | Found Core Membrane 29027 | -3/Section 7 | Installed Core Membrane, gained immunity to corruption 29101 | -3/Section 7 | Core integrity fell below 50% 29110 | -3/Section 7 | Destroyed S7 Guard 29121 | -3/Section 7 | Found Prototype Protection 29121 | -3/Section 7 | Identified Hvy. Regenerative Plating 29140 | -3/Section 7 | Lost 3 parts (1p1u1w) 29301 | -3/Section 7 | Build established: Alien-Mutant 29529 | -3/Section 7 | Found Integrated Reactor 29529 | -3/Section 7 | Installed Integrated Reactor, increased core energy generation (+2%) 29575 | -3/Section 7 | Discovered exit to Research (range 17) 29734 | -3/Section 7 | Destroyed 8 combat bots 29862 | -3/Section 7 | Spotted Executioner 29864 | -3/Section 7 | Spotted Executioner 29870 | -3/Section 7 | Destroyed Executioner 29886 | -3/Section 7 | Destroyed Executioner 29896 | -3/Section 7 | Found Prototype Processor 29896 | -3/Section 7 | Identified Exp. Targeting Computer 29900 | -3/Section 7 | Found Prototype Device 29900 | -3/Section 7 | Identified Adv. Kinecellerator 29904 | -3/Section 7 | Found Prototype Slashing Weapon 29904 | -3/Section 7 | Identified Vibroblade 29911 | -3/Section 7 | Found Prototype Processor 29911 | -3/Section 7 | Identified Exp. Core Analyzer 30087 | -3/Section 7 | Found Transdimensional Reconstructor 30154 | -3/Section 7 | Warped through subspace 30232 | -3/Section 7 | Spotted B-99 Colossus 30254 | -3/Section 7 | Emitted hypermatrix ping 30259 | -3/Section 7 | Assembled emerged from beneath the floor 30291 | -3/Section 7 | Allies destroyed B-99 Colossus 30369 | -3/Section 7 | Found Integrated Reactor 30369 | -3/Section 7 | Installed Integrated Reactor, increased core energy generation (+2%) 30424 | -3/Section 7 | Found LRC Matter Compressor 30424 | -3/Section 7 | Installed LRC Matter Compressor, increased matter storage capacity (+125) 30433 | -3/Section 7 | Found LRC Boosters 30433 | -3/Section 7 | Installed LRC Boosters, increased mass support (+10) 30436 | -3/Section 7 | Found LRC Energy Well 30436 | -3/Section 7 | Installed LRC Energy Well, increased energy storage capacity (+250) 30626 | -3/Section 7 | Activated Sigix Exoskeleton 30626 | -3/Section 7 | Received instructions from Sigix Warrior 30647 | -3/Section 7 | Spotted Executioner 30656 | -3/Section 7 | Allies destroyed Executioner 30718 | -3/Section 7 | Spotted Striker 30718 | -3/Section 7 | Spotted Executioner 30728 | -3/Section 7 | Destroyed Executioner 30735 | -3/Section 7 | Allies destroyed Striker 30786 | -3/Section 7 | Spotted Executioner 30787 | -3/Section 7 | Warped through subspace 30812 | -3/Section 7 | Spotted Executioner 30820 | -3/Section 7 | Used Subatomic Replicator to create Supercharged Sigix Terminator 30825 | -3/Section 7 | Fired Supercharged Sigix Terminator 30825 | -3/Section 7 | Destroyed self with Supercharged Sigix Terminator Last Messages --------------- 30825_ Destroyed Unknown Special Weapon. 30825_ Destroyed Gamma Rifle. 30825_ Destroyed Unknown Hover Unit. 30825_ Destroyed Gamma Rifle. 30825_ Destroyed Unknown Power Core. 30825_ Destroyed Unknown Hover Unit. 30825_ Destroyed Adv. Heat Sink. 30825_ Destroyed Unknown Storage. 30825_ P-80 Master destroyed. 30825_ Destroyed Gamma Rifle. 30825_ Destroyed Unknown Hover Unit. 30825_ Destroyed Adv. Heat Sink. 30825_ Destroyed Unknown Special Weapon. 30825_ Destroyed Adv. Heat Sink. 30825_ Destroyed Gamma Rifle. 30825_ Destroyed Unknown Reactor. 30825_ Destroyed Unknown Power Core. 30825_ Destroyed Unknown Hover Unit. 30825_ Destroyed Unknown Storage. 30825_ P-80 Master destroyed. Map ----- +----------------------------------------------------+ | ??????????????? " ?????????" !%= """ | | ??????????????? ""???"""""""" ! ""?? | | ???????????????? % ???" !!%*[ """ | | ???????????????? """"" [%!=[ | | ?????????????????? % "" [![ | | ?????????? ????????" " ] | | ?????????? ??????" " | | ????????? ?????" | | ????????? """"" | | ????????? | | ???????? ! | | ???????? h !=|* | | ???????? *lg%|| ! """"" " """"""""" | | ???????????"""""" [*Ehm###""""""""""""""""""""" | | ?????????????"""" ! gli# #""""""""""""""""""""" | | ??????????????##### ###g/######################## | | ??????????????????# ??#Eb#??????????????????????? | | ??????????????????##???#hg#??????????????????????? | | ???????????????????????#gg#??????????????????????? | | ?????????????????????###ph; ?################????? | | ?????????????????????# ; ; ?#"""""" """""????? | | ?????????????????????# ; X; ?#"""""" """""#???? | | ?????????????????????# ; ; ?#"""""" "????? | | ?????????????#########;; ;;## " """""#???? | | ????????????# [ """""#???? | | ????????????# @ G """""#???? | | ????????????# ###############" """""#???? | | ?????????????????????????????#"" "#???? | | ??????????!!?????????????????#" " "#???? | | ?????????????????????????????#"""""""" " " "#???? | | ?????????????????????????????######### # ####???? | | ?????????????????????????????????????# ###??????? | | ?????????????????????????????????????# #????????? | | ?????????????????????????????????????# #????????? | | ?????????????????????????????????????# #????????? | | ??????????????????????##############?# #????????? | | ?????????????????????#"""""""""""""#?# #????????? | | ?????????????????????#"" """" #?# #????????? | | ?????????????????????#"" """" #?# #????????? | | ?????????????????????#"" """" ### #????????? | | ?????????????????????#"" """" #????????? | | ?????????????????????# #????????? | | ?????????????????????# ######????????? | | ????????????# ####### """" ""#?????????????? | | ????????????# """" ""#?????????????? | | ????????????# """" ""#?????????????? | | ????????????##########" """" ""#?????????????? | | ?????????????????????#"""T """"""""#?????????????? | | ?????????????????????##### #########?????????????? | | ?????????????????????????# #?????????????????????? | +----------------------------------------------------+ Best States ------------- Heat Dissipation 123 Coolant Potential 50 Energy Generation 79 Energy Capacity 2350 Matter Stores 406 Matter Capacity 425 Sight Range 23 Robot Scan Range 30 Terrain Scan Range 20 Terrain Scan Density 1010 Jamming Range 12 Additional Mass Support 10 EM Shielding 2 Armor Coverage 1200 Resistance: KI 30 Resistance: TH 50 Resistance: EX 15 Resistance: EM 90 Resistance: I 15 Resistance: S 15 Resistance: P 15 Utility Shielding 90 Weapon Shielding 100 Weapon Cycling 20 Phase Shifting 8 Evasion (%) 48 Targeting Accuracy 20 Core Analysis 8 Recoil Reduction 3 Energy Filtering 30 Particle Charging 30 Offensive Hacking 24 Item Schematics ----------------- Exp. Utility Shielding | -3/Research | Scanalyzed Adv. Powered Armor | -3/Research | Scanalyzed Hyp. Mass Driver | -3/Research | Scanalyzed Exp. Weapon Shielding | -3/Research | Scanalyzed Exp. Sensor Array | -3/Quarantine | Hacked Cmb. Linear Gravjet | -3/Section 7 | Hacked Robot Schematics ------------------ None Fabricated ------------ Adv. Powered Armor | x1 | -5/Factory Adv. Powered Armor | x1 | -5/Factory Exp. Signal Interpreter | x1 | -4/Factory Exp. Utility Shielding | x1 | -4/Factory Exp. Utility Shielding | x1 | -4/Factory Exp. Utility Shielding | x1 | -4/Armory Alien Tech Used ----------------- Integrated Reactor Transdimensional Reconstructor Core Reset Matrix Dimensional Node Initializer Core Stripper Integrated Singularity Reactor Integrated Dissipator Core Membrane LRC Matter Compressor LRC Boosters LRC Energy Well High-powered Transdimensional Reconstructor Subatomic Replicator Supercharged Sigix Terminator Achievements -------------- None Challenges ------------ None Game ------ Seed SmallCryofiberClaws Manual? 0 Play Time 04:36:45 Cumulative 854.5 hours Start 2020.08.02 @ 15:24:02 End 2020.08.03 @ 00:16:05 Sessions 11 Manual Loads 0 Difficulty Rogue Special Mode None Game No. 267 Rogue 267 Adventurer 0 Explorer 0 Win Type - Total 51 Types 39/1/3/3/3/1/1 Lore% 97 Gallery% 99 Achievement% 97 Wizard Run 0 Options --------- ASCII 0 Keyboard 1 Movement Numpad Keybinds 0 Fullscreen 1 Font 18/SmallcapsGlow Map View 76x50 Tactical HUD 1 Map Filters NONE Filters NONE Steam 1 RUN: 1dd98077-4d50-471a-97c6-bbc83e6abd0d